[Event "Summer Chess Classic-B 2022"]
[Site "Saint Louis"]
[Date "2022.06.04"]
[Round "3.5"]
[White "Zhou, Jianchao"]
[Black "Jacobson, Brandon"]
[Result "1/2-1/2"]
[ECO "E94"]
[WhiteElo "2589"]
[BlackElo "2526"]
[Annotator "TA"]
[PlyCount "83"]
[EventDate "2022.05.31"]
[EventType "tourn"]
[EventCountry "USA"]
[SourceTitle "playchess.com"]
[Source "ChessBase"]
[SourceQuality "1"]
[TimeControl "40/5400+30:1800+30"]

{[%evp 15,83,38,33,27,43,43,58,60,80,77,89,72,76,56,54,45,45,43,35,32,25,22,43,29,37,15,19,20,62,62,62,62,62,62,62,61,62,15,4,0,0,0,0,0,0,-12,0,0,68,65,111,64,108,120,89,53,200,197,168,0,0,0,0,0,0,0,6,0,0,-3]} 1. d4 {[%emt 0:00:03]} Nf6 {[%emt 0:00:06]} 2. c4 {[%emt 0:00:03]} g6 {[%emt 0:00:07]} 3. Nc3 {[%emt 0:00:05]} Bg7 {[%emt 0:00:06]} 4. e4 {[%emt 0:00:06]} d6 {[%emt 0:00:05]} 5. Be2 {[%emt 0:00:03]} O-O {[%emt 0:00:13]} 6. Nf3 {[%emt 0:00:07]} e5 {[%emt 0:00:09]} 7. O-O {[%emt 0:00:10]} Bg4 {[%emt 0:00:26]} 8. d5 {[%emt 0:00:16]} a5 {[%emt 0:00:24]} 9. h3 {[%emt 0:00:26] E94: King's Indian: Classical: 6 Be2 e5 7 0-0: Various Black 7th moves.} Bxf3 {[%emt 0:00:35]} 10. Bxf3 {[%emt 0:00:11]} Nbd7 {[%emt 0:00:06]} 11. Rb1 {[%emt 0:09:00] White is slightly better.} h5 {[%emt 0:05:18]} 12. Bg5 {[%emt 0:01:10] [#]} Qe8 $146 {[%emt 0:06:47]} ({Predecessor:} 12... Qc8 13. b3 Nh7 14. Be3 Qd8 15. g3 h4 16. Bg2 Bf6 17. Nb5 Kg7 18. Qd2 Rh8 {1-0 (60) Slyusar,V (2107)-Palladino,M (2304) ICCF email 2021}) 13. a3 {[%emt 0:03:05]} Nh7 {[%emt 0:22:46]} 14. Bd2 {[%emt 0:05:10] White is more active.} Qe7 {[%emt 0:04:11]} 15. b4 {[%emt 0:08:38]} axb4 {[%emt 0:02:25]} 16. axb4 {[%emt 0:00:04]} Bf6 {[%emt 0:00:04][%cal Bg7f6,Bf6g5,Bg5f4][%mdl 32]} 17. Qc2 {[%emt 0:30:18]} Bg5 {[%emt 0:01:28]} 18. Ra1 {[%emt 0:00:23]} Bf4 {[%emt 0:05:07]} 19. Rxa8 {[%emt 0:04:34]} Rxa8 {[%emt 0:00:05]} 20. Rd1 {[%emt 0:00:35]} Ng5 {[%emt 0:33:10]} 21. Be2 {[%emt 0:00:17]} h4 {[%emt 0:00:03]} 22. Be1 {[%emt 0:08:09]} Nf6 {[%emt 0:00:18]} 23. Bf1 {[%emt 0:01:37]} Ra3 {[%emt 0:06:24]} 24. Qb2 {[%emt 0:05:15]} Ra8 {[%emt 0:00:05]} 25. Qe2 {[%emt 0:04:29]} Nh5 {[%emt 0:04:07] Inhibits g3.} 26. c5 {[%emt 0:05:02]} (26. Rb1 $14 {feels stronger.}) 26... dxc5 $11 {[%emt 0:01:32]} 27. d6 {[%emt 0:00:30]} cxd6 {[%emt 0:00:45]} 28. Nd5 {[%emt 0:00:07]} Qf8 {[%emt 0:00:30]} 29. bxc5 {[%emt 0:06:34]} dxc5 {[%emt 0:00:02]} 30. Qg4 {[%emt 0:00:46]} Nxe4 {[%emt 0:03:01] ...Nef6 is the strong threat.} 31. Qxh4 {[%emt 0:00:19]} Qh6 {[%emt 0:02:23]} ({Better is} 31... f5 $1 $11 32. Nxf4 exf4) 32. Qe7 $1 $14 {[%emt 0:02:51]} Rf8 {[%emt 0:02:17]} (32... Qf8 $14 {was preferrable.}) 33. Qxb7 {[%emt 0:00:47]} (33. g3 $16 Bd2 34. Qxe5 Bxe1 35. Qxe4 (35. Rxe1 f5 $16)) 33... Nhf6 {[%emt 0:01:20]} 34. Nxf6+ {[%emt 0:00:47]} Nxf6 {[%emt 0:00:02]} 35. Qc6 {[%emt 0:02:30]} Qg5 {[%emt 0:00:54] [#]} (35... Qh5 $14 36. Rd6 Nh7) 36. g3 $1 $18 {[%emt 0:01:45][%mdl 1024] White has strong compensation.} e4 {[%emt 0:00:11]} 37. h4 $2 {[%emt 0:00:52]} ({White has to play} 37. Bc3 $18 Be5 38. Qxc5) 37... Qf5 $11 {[%emt 0:00:01] White must now prevent ...Rc8. The position is equal.} 38. Bh3 {[%emt 0:01:42]} Qh5 {[%emt 0:01:12]} (38... Qxh3 $2 39. Qxf6 Bxg3 40. fxg3 $18) 39. Rb1 {[%emt 0:00:36]} Be5 {[%emt 0:00:34] [#] Strongly threatening ...Bd4.} 40. Qxc5 {[%emt 0:00:16]} Re8 {[%emt 0:00:33]} 41. Qe3 {[%emt 0:08:52]} Rd8 {[%emt 0:03:03]} 42. Bf1 {[%emt 0:07:45] Weighted Error Value: White=0.14 (very precise) /Black=0.17 (very precise)} 1/2-1/2

[Event "Summer Chess Classic-B 2022"]
[Site "Saint Louis"]
[Date "2022.06.05"]
[Round "4.1"]
[White "Harutyunyan, Tigran K."]
[Black "Jacobson, Brandon"]
[Result "1-0"]
[ECO "A15"]
[WhiteElo "2550"]
[BlackElo "2526"]
[Annotator "TA"]
[PlyCount "93"]
[EventDate "2022.05.31"]
[EventType "tourn"]
[EventCountry "USA"]
[SourceTitle "playchess.com"]
[Source "ChessBase"]
[SourceQuality "1"]
[TimeControl "40/5400+30:1800+30"]

{[%evp 9,93,4,16,11,26,0,0,0,0,0,0,0,0,0,16,0,0,-24,-22,-32,-31,-28,-25,-34,-32,-32,-32,-41,-40,-50,-54,-40,-37,-36,8,8,8,4,4,8,11,11,8,8,45,27,47,41,37,41,47,0,6,9,46,28,33,39,35,34,32,32,32,34,27,39,52,44,36,58,81,82,175,168,187,183,347,357,341,8,350,310,278,183,634,615]} 1. Nf3 {[%emt 0:00:03]} Nf6 {[%emt 0:00:08]} 2. c4 {[%emt 0:00:15]} g6 {[%emt 0:00:32]} 3. b4 {[%emt 0:00:24][%cal Bb2b4,Bb4b5][%mdl 32]} a5 {[%emt 0:05:55]} 4. b5 {[%emt 0:00:30]} Bg7 {[%emt 0:01:01]} 5. Bb2 {[%emt 0:02:31]} a4 {[%emt 0:07:03] [#]} 6. e3 $146 {[%emt 0:12:36] A15: English Opening: 1...Nf6.} ({Predecessor:} 6. g3 c6 7. Na3 d5 8. Bg2 O-O 9. O-O dxc4 10. bxc6 Nxc6 11. Nxc4 Be6 12. Ne3 a3 13. Bc3 {½-½ (44) Moore,G (2218)-Derakhshani,B (2315) Hull 2018}) 6... c6 {[%emt 0:03:48]} 7. Be2 {[%emt 0:04:04]} cxb5 {[%emt 0:04:54]} 8. cxb5 {[%emt 0:00:22] The position is equal.} d6 {[%emt 0:00:04]} 9. O-O {[%emt 0:01:48]} Nbd7 {[%emt 0:09:51]} 10. Na3 {[%emt 0:15:42]} Nb6 {[%emt 0:07:43]} 11. d3 {[%emt 0:00:19]} O-O {[%emt 0:00:29]} 12. Qd2 {[%emt 0:00:27]} e5 {[%emt 0:02:11]} 13. e4 {[%emt 0:04:14]} Re8 {[%emt 0:08:15]} 14. Rfd1 {[%emt 0:08:39]} d5 {[%emt 0:06:48]} 15. Nxe5 {[%emt 0:09:51]} dxe4 {[%emt 0:00:24]} 16. Qc2 {[%emt 0:01:01]} e3 {[%emt 0:06:47]} 17. fxe3 {[%emt 0:01:35]} Nfd5 {[%emt 0:00:06]} 18. Nec4 {[%emt 0:07:15]} (18. Nac4 Bxe5 19. Bxe5 Nxe3 $1 {[%mdl 512]} 20. Nxe3 Rxe5 $17) 18... Nxe3 {[%emt 0:00:06]} (18... Bxb2 {seems wilder.} 19. Qxb2 Nxe3 20. Nxe3 Rxe3 21. Bf3 Re7) 19. Nxe3 {[%emt 0:00:16] Strongly threatening Bxg7.} Bxb2 {[%emt 0:00:14]} ({But not} 19... Rxe3 20. Bxg7 Kxg7 21. Bf3 $11 (21. Nc4 Nxc4 22. dxc4 Qg5 $11)) 20. Qxb2 {[%emt 0:00:20] Black must now prevent Nac2.} Rxe3 {[%emt 0:00:04]} 21. Bf3 {[%emt 0:03:16]} Rxd3 {[%emt 0:17:30]} 22. Rxd3 {[%emt 0:02:08]} Qxd3 {[%emt 0:00:03]} 23. Rd1 $1 {[%emt 0:00:09]} Qe3+ {[%emt 0:00:06]} 24. Qf2 {[%emt 0:00:20]} Qxf2+ {[%emt 0:00:06]} (24... Qxa3 {with more complications.} 25. Rd8+ Kg7 26. Qd4+ Kh6) 25. Kxf2 {[%emt 0:00:07]} Be6 {[%emt 0:00:02]} 26. Rd6 {[%emt 0:01:22]} ({Much worse is} 26. Bxb7 Rb8 27. Bf3 Bxa2 $15) 26... Nd7 {[%emt 0:06:20]} (26... Nc4 $5 {[%cal Rc4d6]} 27. Rxe6 (27. Nxc4 Bxc4 28. b6 Ba6 $11) 27... Nxa3 $11) 27. Bxb7 {[%emt 0:03:11]} Rb8 {[%emt 0:00:02]} 28. Bd5 {[%emt 0:05:25]} Nf6 $1 {[%emt 0:00:59]} 29. Bf3 {[%emt 0:00:47]} Nd7 {[%emt 0:04:56]} 30. Bd5 {[%emt 0:01:48]} Nf6 $1 {[%emt 0:00:07]} 31. Bc6 {[%emt 0:00:04]} Ng4+ {[%emt 0:02:07]} 32. Kg3 {[%emt 0:00:59][%cal Od6e6]} Ne3 {[%emt 0:00:37] aiming for ...Nf5+.} 33. Kf4 {[%emt 0:01:02]} Nf5 {[%emt 0:00:06]} 34. Rd2 {[%emt 0:00:47]} Kf8 {[%emt 0:03:51]} 35. g4 {[%emt 0:02:57]} Ne7 {[%emt 0:00:04]} 36. Bf3 {[%emt 0:00:12]} Nc8 {[%emt 0:01:14]} 37. Bd5 {[%emt 0:01:56]} Ke7 {[%emt 0:02:04]} 38. Bxe6 $1 {[%emt 0:01:50]} fxe6 $14 {[%emt 0:00:02][%mdl 4096] Endgame KRN-KRN} 39. Rc2 {[%emt 0:03:54]} Kd6 {[%emt 0:01:38] Prevents Rc7.} 40. Ke4 $1 {[%emt 0:00:59] White is more active.} Ne7 {[%emt 0:01:17] Prevents Rc6+.} (40... Nb6 $16) 41. Nc4+ $18 {[%emt 0:31:44]} Kd7 {[%emt 0:04:50]} 42. Ne5+ {[%emt 0:00:00]} Kd6 $2 {[%emt 0:00:08]} (42... Kd8) 43. b6 $1 {[%emt 0:00:00][%cal Bb5b6,Bb6b7][%mdl 32]} Nd5 {[%emt 0:03:14] [#]} 44. Rc6+ {[%emt 0:00:00]} Ke7 {[%emt 0:00:03] [#]} 45. Nc4 $1 {[%emt 0:00:00] Threatens to win with Ke5.} Kf6 {[%emt 0:10:31]} 46. a3 {[%emt 0:00:00]} Rd8 $2 {[%emt 0:02:46]} (46... h5) 47. b7 {[%emt 0:00:00] Weighted Error Value: White=0.05 (flawless) /Black=0.30} 1-0

[Event "Summer Chess Classic-B 2022"]
[Site "Saint Louis"]
[Date "2022.06.05"]
[Round "4.2"]
[White "Antipov, Mikhail Al."]
[Black "Zhou, Jianchao"]
[Result "1/2-1/2"]
[ECO "E73"]
[WhiteElo "2592"]
[BlackElo "2589"]
[Annotator "TA"]
[PlyCount "111"]
[EventDate "2022.05.31"]
[EventType "tourn"]
[EventCountry "USA"]
[SourceTitle "playchess.com"]
[Source "ChessBase"]
[SourceQuality "1"]
[TimeControl "40/5400+30:1800+30"]

{[%evp 14,111,29,32,32,31,48,41,87,73,69,81,65,31,20,0,27,0,0,0,0,12,71,70,72,0,0,0,0,0,0,0,0,0,0,0,0,-313,-249,-391,-383,-557,-555,-573,-558,-545,-30,-32,-37,-27,-28,-225,0,-42,0,0,-10,-30,0,0,0,0,0,0,0,0,0,0,0,0,0,0,0,0,0,0,0,0,0,0,0,0,0,-15,-15,-15,0,0,0,0,0,0,0,0,0,0,0,0,0,0]} 1. d4 {[%emt 0:00:02]} Nf6 {[%emt 0:01:51]} 2. c4 {[%emt 0:00:05]} g6 {[%emt 0:01:12]} 3. Nc3 {[%emt 0:00:05]} Bg7 {[%emt 0:00:03]} 4. e4 {[%emt 0:00:06]} d6 {[%emt 0:00:03]} 5. Be2 {[%emt 0:00:06]} O-O {[%emt 0:00:05]} 6. h4 {[%emt 0:00:03][%cal Bh2h4,Bh4h5][%mdl 32]} c5 {[%emt 0:06:43] The main line 6...c5 scores better than 6...h5.} 7. d5 {[%emt 0:00:32]} e6 {[%emt 0:00:58]} 8. h5 {[%emt 0:00:06]} exd5 {[%emt 0:00:10] E73: King's Indian: Averbakh Variation without 6...c5.} 9. exd5 {[%emt 0:00:02]} Qb6 {[%emt 0:02:36]} 10. g4 {[%emt 0:19:53]} Re8 {[%emt 0:09:00]} (10... Nbd7 $14 {is more appropriate.}) 11. f3 $16 {[%emt 0:00:31]} Nbd7 {[%emt 0:10:04]} 12. Kf1 {[%emt 0:04:24]} Ne5 {[%emt 0:08:03]} 13. Nh3 {[%emt 0:07:52] [#]} h6 $146 {[%emt 0:02:30]} ({Predecessor:} 13... Bd7 14. Nf2 Bc8 15. f4 Ned7 16. hxg6 hxg6 17. g5 Nh7 18. Bd3 Ndf8 19. Qc2 Qd8 {1-0 (47) Ruckschloss,K (2255)-Berek,G (2222) Slovakia 2010}) 14. Qc2 {[%emt 0:26:01]} g5 {[%emt 0:07:23]} 15. Nxg5 {[%emt 0:09:34]} hxg5 {[%emt 0:00:24]} 16. h6 {[%emt 0:00:03]} Bf8 {[%emt 0:03:16]} 17. Bxg5 {[%emt 0:02:49]} Nh7 {[%emt 0:00:58]} (17... Qd8 $1 $11 {remains equal.}) 18. Ne4 {[%emt 0:14:13] Nf6+ would kill now. White is more active.} Nxg4 {[%emt 0:10:56][%cal Oe8e4] [#]} (18... f5 $2 19. Nf6+ Kh8 20. Nxh7 (20. Nxe8 Nxg5 21. f4 Ne4 $18) 20... Kxh7 21. gxf5 $18) 19. fxg4 {[%emt 0:03:44]} (19. Bf4 $1 $16 f5 20. Ng3) 19... Rxe4 $11 {[%emt 0:06:47]} 20. Bd3 $1 {[%emt 0:06:24]} Nxg5 {[%emt 0:02:03][%cal Bh7g5,Bg5e4,Be4g3][%mdl 32]} 21. Bxe4 {[%emt 0:00:01]} Nxe4 {[%emt 0:09:21]} 22. Re1 $1 {[%emt 0:00:01]} Bf5 {[%emt 0:11:14]} 23. gxf5 {[%emt 0:00:59] Chess con chili.} Ng3+ {[%emt 0:00:13]} 24. Kg2 {[%emt 0:02:50][%cal Oc2c3] Threatening mate with Qc3!} Nxh1 {[%emt 0:00:21]} 25. Kxh1 $2 {[%emt 0:00:30][%mdl 8192] [#]} (25. Rg1 $1 $11 Qb4 26. a3) 25... Qa5 $1 $19 {[%emt 0:05:03]} (25... Bxh6 26. Rg1+ Kf8 27. f6 $18) 26. Rg1+ {[%emt 0:00:59]} (26. Qg2+ {was necessary.} Kh8 27. Re7) 26... Kh8 {[%emt 0:00:07]} 27. Qh2 {[%emt 0:01:02]} (27. b3 {keeps fighting.} Bxh6 28. Qh2) 27... Qd8 {[%emt 0:00:42]} 28. Qg3 {[%emt 0:00:43][%csl Gg1][%cal Rg3g8]} Bxh6 {[%emt 0:00:18]} 29. Qc3+ {[%emt 0:00:01]} f6 $2 {[%emt 0:02:03]} (29... Kh7 $19 {( -> ...Qh4+)} 30. f6 Qe8) 30. Qh3 $11 {[%emt 0:00:56][%cal Rh3h6]} Qf8 {[%emt 0:00:19] ...Rc8 is the strong threat.} 31. Rg6 {[%emt 0:00:41]} Kh7 {[%emt 0:00:02] Strongly threatening ...Re8.} 32. Qh5 $2 {[%emt 0:00:19]} (32. a4 $11) 32... Re8 $2 {[%emt 0:00:22]} ({Stronger than} 32... b5 33. cxb5 Rb8 34. a4 $15) ({Better is} 32... a6 $19 {White must now prevent ...b5.} 33. a4 b6) 33. Kg2 $15 {[%emt 0:00:30]} Re5 {[%emt 0:01:08]} (33... Re4 $5 {[%cal Ra7a6]} 34. Kf2 Re7 $19) 34. a4 {[%emt 0:00:49]} Re4 {[%emt 0:00:30]} 35. b3 {[%emt 0:00:29]} b6 {[%emt 0:00:37]} 36. Kf3 {[%emt 0:00:21] The position is equal.} Re3+ {[%emt 0:00:13]} 37. Kf2 {[%emt 0:00:08]} Re5 {[%emt 0:00:42]} 38. Kg2 {[%emt 0:00:22]} a6 {[%emt 0:00:29]} ({Much worse is} 38... Re3 $6 39. Kf2 $17) 39. Kf2 {[%emt 0:00:40]} Re7 {[%emt 0:00:24]} 40. Kf1 {[%emt 0:00:50]} Rb7 {[%emt 0:00:29]} 41. Kf2 $1 {[%emt 0:03:16]} Ra7 {[%emt 0:26:01]} 42. Kf1 {[%emt 0:00:51]} Re7 {[%emt 0:00:49]} 43. Kf2 {[%emt 0:01:03]} Re4 {[%emt 0:02:06]} 44. Kf3 {[%emt 0:01:49]} Rf4+ {[%emt 0:01:05]} ({Of course not} 44... Re3+ 45. Kf2 $17) 45. Kg2 {[%emt 0:02:23]} Re4 {[%emt 0:01:41]} 46. Kf3 {[%emt 0:00:05]} Re5 {[%emt 0:00:20]} 47. Kf2 {[%emt 0:00:58]} Re7 {[%emt 0:00:56]} 48. Kf1 {[%emt 0:00:12]} Re3 {[%emt 0:00:50]} 49. Kf2 {[%emt 0:00:15]} Rxb3 {[%emt 0:00:18]} 50. Rxh6+ {[%emt 0:04:27]} Qxh6 {[%emt 0:00:02]} 51. Qf7+ {[%emt 0:00:07]} Qg7 {[%emt 0:00:16]} 52. Qh5+ {[%emt 0:00:04]} Kg8 {[%emt 0:00:02]} 53. Qe8+ {[%emt 0:00:04]} Qf8 {[%emt 0:00:04]} 54. Qg6+ {[%emt 0:00:04]} Qg7 {[%emt 0:00:07]} 55. Qe8+ {[%emt 0:00:03]} Qf8 {[%emt 0:00:17]} 56. Qg6+ $1 {[%emt 0:00:05] Black had all chances to win.  Weighted Error Value: White=0.22 (precise) /Black=0.28 (precise)} 1/2-1/2

[Event "Summer Chess Classic-B 2022"]
[Site "Saint Louis"]
[Date "2022.06.05"]
[Round "4.3"]
[White "Yoo, Christopher Woojin"]
[Black "Dragun, Kamil"]
[Result "1/2-1/2"]
[ECO "E21"]
[WhiteElo "2535"]
[BlackElo "2571"]
[Annotator "TA"]
[PlyCount "80"]
[EventDate "2022.05.31"]
[EventType "tourn"]
[EventCountry "USA"]
[SourceTitle "playchess.com"]
[Source "ChessBase"]
[SourceQuality "1"]
[TimeControl "40/5400+30:1800+30"]

{[%evp 10,80,-2,0,0,0,6,5,0,9,4,0,0,0,12,-10,-18,-20,-18,-25,-38,-29,-35,-82,-99,-95,-101,-102,-95,-83,-90,-98,-87,-87,-91,-64,0,-35,-25,-142,-147,-141,-148,-131,-133,-128,-129,-141,-121,-116,-101,-158,-133,-160,-160,-169,0,-147,0,-154,0,-159,0,-154,0,-139,0,-152,0,-149,0,-149,0]} 1. d4 {[%emt 0:00:11]} Nf6 {[%emt 0:00:09]} 2. c4 {[%emt 0:00:07]} e6 {[%emt 0:00:07]} 3. Nc3 {[%emt 0:00:06]} Bb4 {[%emt 0:00:14]} 4. e3 {[%emt 0:00:08]} O-O {[%emt 0:00:25]} 5. Bd2 {[%emt 0:00:12]} b6 {[%emt 0:02:20]} 6. Nf3 {[%emt 0:00:17]} c5 {[%emt 0:02:18] E21: Nimzo-Indian: 4 Nf3.} 7. dxc5 {[%emt 0:06:12]} Bxc5 {[%emt 0:06:33]} 8. Bd3 {[%emt 0:02:40]} Bb7 {[%emt 0:00:12] The position is equal.} 9. O-O {[%emt 0:06:01]} Nc6 {[%emt 0:00:49]} 10. a3 {[%emt 0:05:54]} Rc8 {[%emt 0:02:44] [#]} 11. e4 $146 {[%emt 0:08:00]} ({Predecessor:} 11. Rc1 d5 12. cxd5 exd5 13. Bf5 Rc7 14. b4 Bd6 15. Nb5 Re7 16. Nxd6 Qxd6 17. b5 {1-0 (31) Becker,R-Ballo,E Kassel 1995}) 11... Ng4 {[%emt 0:18:59] Against e5} 12. Bf4 {[%emt 0:12:21]} Qf6 {[%emt 0:14:15]} 13. Bg5 {[%emt 0:02:02]} Qg6 {[%emt 0:00:02]} 14. e5 {[%emt 0:00:54]} Qh5 {[%emt 0:04:17]} 15. Bf4 {[%emt 0:00:57]} f6 $36 {[%emt 0:02:51][%mdl 2048] Black is pushing.} 16. exf6 {[%emt 0:03:52]} (16. Be4 $15 {might be stronger.}) 16... Rxf6 $17 {[%emt 0:01:11]} 17. Bg3 {[%emt 0:01:00]} Nce5 $1 {[%emt 0:20:59]} 18. Nxe5 {[%emt 0:26:05] [#]} Rxf2 $1 {[%emt 0:00:19][%mdl 512]} 19. Rxf2 {[%emt 0:00:18]} Bxf2+ {[%emt 0:00:22]} 20. Kf1 {[%emt 0:00:57]} ({But not} 20. Kh1 $2 Ne3 $1 21. Bxf2 Nxd1 22. Rxd1 Qxe5 $19) 20... Ne3+ {[%emt 0:11:33][%mdl 64] Discovered Attack, Double Attack} 21. Kxf2 {[%emt 0:00:05]} Nxd1+ {[%emt 0:00:03]} 22. Rxd1 {[%emt 0:00:06]} d6 {[%emt 0:00:19]} (22... Rf8+ $1 $15 23. Ke1 Qg5 24. Nxd7 Rd8) 23. Nf3 {[%emt 0:02:29]} Rf8 {[%emt 0:02:49][%cal Rb7f3]} 24. Ne4 {[%emt 0:03:05]} (24. Be2 $11 {keeps the balance.}) 24... Bxe4 {[%emt 0:03:54]} 25. Bxe4 {[%emt 0:00:04]} Qc5+ {[%emt 0:00:00]} 26. Ke2 {[%emt 0:01:03]} Qxc4+ {[%emt 0:00:02]} 27. Bd3 {[%emt 0:01:16] [#]} Qg4 {[%emt 0:00:01]} 28. Ke3 {[%emt 0:01:15]} e5 {[%emt 0:02:38]} 29. Be4 {[%emt 0:01:09] [#]} Qc8 $1 {[%emt 0:00:01]} 30. Rd2 {[%emt 0:02:26]} (30. b4 $142) 30... Qc5+ {[%emt 0:01:45]} 31. Ke2 {[%emt 0:00:09]} Qc4+ {[%emt 0:00:00]} 32. Ke3 {[%emt 0:00:38] And now Bd5+ would win.} Qc5+ {[%emt 0:00:24]} 33. Ke2 {[%emt 0:00:13]} Qc4+ {[%emt 0:00:01]} 34. Ke3 $1 {[%emt 0:01:33] Really sharp!} Qc5+ {[%emt 0:02:55]} 35. Ke2 {[%emt 0:00:09]} Qc4+ {[%emt 0:00:03]} 36. Ke3 $1 {[%emt 0:00:57] Bd5+ is the strong threat.} Qc5+ {[%emt 0:01:38]} 37. Ke2 {[%emt 0:00:05]} Qc4+ {[%emt 0:00:09]} 38. Ke3 $1 {[%emt 0:00:45] aiming for Bd5+.} Qc5+ {[%emt 0:00:26]} 39. Ke2 {[%emt 0:00:11]} Qc4+ {[%emt 0:00:01]} 40. Ke3 $1 {[%emt 0:00:07] Hoping for Bd5+.} Qc5+ {[%emt 0:00:53] And White is the lucky defender.  Weighted Error Value: White=0.10 (very precise) /Black=0.45} (40... Kh8 $17 41. h3 b5) 1/2-1/2